bitfinex-derivatives/quotes_SOLF0:USTF0_20250716
["timestamp","ask_amount","ask_price","bid_price","bid_amount"]
[1752681365985,17.67715391,167.56,167.45,3.49]
[1752681366182,14.45715391,167.53,167.45,3.49]
[1752681366383,3.22,167.52,167.45,9.459]
[1752681366585,3.22,167.52,167.45,3.49]
[1752681366790,9.1858,167.55,167.47,5.9683]
[1752681366984,3.22,167.55,167.48,3.49]
[1752681367485,17.67715391,167.53,167.45,3.49]
[1752681367687,14.45715391,167.51,167.45,3.49]
[1752681368083,3.22,167.5,167.45,3.49]
[1752681368282,160.21443265,167.58,167.45,3.49]
[1752681368499,3.22,167.57,167.45,3.49]
[1752681368789,17.67715391,167.56,167.45,3.49]
[1752681368989,17.67715391,167.56,167.44,14.45715391]
[1752681368990,17.67715391,167.56,167.49,3.49]
[1752681369490,530.01715391,167.64,167.4,193.26]
[1752681369491,3.22,167.59,167.5,3.49]
[1752681369681,14.45715391,167.62,167.5,14.45715391]
[1752681369886,3.22,167.61,167.51,3.49]
[1752681370083,17.67715391,167.52,167.49,3.49]
[1752681370282,530.01715391,167.64,167.5,3.49]
[1752681370283,3.22,167.53,167.5,3.49]
[1752681370486,5.9667,167.53,167.43,3.49]
[1752681370686,3.22,167.55,167.43,3.49]
[1752681370991,17.67715391,167.53,167.44,3.49]
[1752681371490,17.67715391,167.53,167.44,9.4595]
[1752681371793,14.45715391,167.5,167.44,3.49]
[1752681371990,14.45715391,167.48,167.45,5.9692]
[1752681372288,14.45715391,167.48,167.47,3.49]
[1752681372695,17.67715391,167.48,167.44,3.49]
[1752681372894,3.22,167.47,167.41,3.49]
[1752681373399,3.22,167.47,167.44,3.49]
[1752681373893,14.45715391,167.48,167.46,3.49]
[1752681374097,14.45715391,167.51,167.4,3.49]
[1752681374291,20.42435391,167.51,167.4,3.49]
[1752681374485,3.22,167.55,167.42,14.45715391]
[1752681374694,14.45715391,167.56,167.45,14.45715391]
[1752681374896,14.45715391,167.58,167.46,195.02]
[1752681375093,14.45715391,167.58,167.47,3.49]
[1752681375790,14.45715391,167.58,167.49,3.49]
[1752681375995,20.42205391,167.58,167.53,3.49]
[1752681376191,14.45715391,167.6,167.55,3.49]
[1752681376392,3.22,167.65,167.52,3.49]
[1752681376600,3.22,167.65,167.53,3.32]
[1752681376800,14.45715391,167.61,167.53,3.32]
[1752681376989,17.86715391,167.64,167.55,3.32]
[1752681377292,5.9625,167.65,167.55,3.32]
[1752681377293,14.45715391,167.65,167.55,3.32]
[1752681377497,17.86715391,167.65,167.55,3.32]
[1752681377995,14.45715391,167.65,167.55,3.32]
[1752681378296,14.45715391,167.62,167.55,3.32]
[1752681378594,3.41,167.64,167.55,3.32]
[1752681378803,515.6,167.74,167.55,3.32]
[1752681378804,14.45715391,167.66,167.55,3.32]
[1752681379708,3.41,167.65,167.55,3.32]
[1752681380504,3.41,167.65,167.58,5.9646]
[1752681380708,14.45715391,167.66,167.59,3.32]
[1752681380908,17.86715391,167.68,167.59,3.32]
[1752681381712,17.86715391,167.68,167.63,3.32]
[1752681381914,14.45715391,167.76,167.63,3.32]
[1752681381915,14.45715391,167.69,167.63,3.32]
[1752681382215,17.86715391,167.69,167.63,3.32]
[1752681382707,9.3728,167.64,167.6,3.32]
[1752681383109,3.41,167.64,167.61,3.32]
[1752681383708,3.41,167.65,167.62,3.32]
[1752681383905,14.45715391,167.76,167.55,194.24]
[1752681384108,3.41,167.68,167.58,14.45715391]
[1752681384310,14.45715391,167.7,167.59,3.32]
[1752681384611,14.45715391,167.7,167.63,3.32]
[1752681385011,3.41,167.71,167.63,3.32]
[1752681385210,14.45715391,167.7,167.63,3.32]
[1752681385411,14.45715391,167.72,167.63,3.32]
[1752681385612,17.86715391,167.74,167.63,3.32]
[1752681386314,3.41,167.73,167.63,3.32]
[1752681386614,3.41,167.73,167.66,5.9617]
[1752681386807,3.41,167.73,167.66,3.32]
[1752681387113,17.86715391,167.76,167.66,3.32]
[1752681387417,17.86715391,167.76,167.7,3.32]
[1752681387712,14.45715391,167.76,167.7,3.32]
[1752681388211,3.41,167.79,167.7,3.32]
[1752681388714,5.9576,167.78,167.71,3.32]
[1752681389016,3.41,167.74,167.68,3.32]
[1752681389323,17.86715391,167.72,167.68,3.32]
[1752681389517,17.86715391,167.75,167.63,3.32]
[1752681389910,23.82595391,167.75,167.63,3.32]
[1752681390110,17.86715391,167.72,167.63,3.32]
[1752681390917,17.86715391,167.75,167.63,3.32]
[1752681391110,17.86715391,167.75,167.65,3.32]
[1752681391424,3.41,167.75,167.65,3.32]
[1752681391611,14.45715391,167.74,167.65,193.26]
[1752681391913,14.45715391,167.77,167.66,3.32]
[1752681392310,3.41,167.78,167.68,14.45715391]
[1752681392612,3.41,167.78,167.74,5.9589]
[1752681392818,3.41,167.78,167.75,3.32]
[1752681393514,3.41,167.79,167.69,3.32]
[1752681394616,14.45715391,167.83,167.62,464.89489095]
[1752681394808,3.41,167.73,167.63,14.45715391]
[1752681395010,1.03733512,167.85,167.64,3.32]
[1752681395220,17.86715391,167.76,167.65,3.32]
[1752681395409,3.41,167.76,167.65,3.32]
[1752681396019,9.3683,167.76,167.7,5.9601]
[1752681396220,9.3683,167.76,167.7,9.2801]
[1752681396420,9.3683,167.76,167.7,3.32]
[1752681396613,3.41,167.76,167.7,9.2803]
[1752681396815,3.41,167.76,167.7,3.32]
[1752681397013,3.41,167.73,167.67,3.32]
[1752681397314,14.45715391,167.74,167.71,3.32]
[1752681397509,1.03733512,167.85,167.62,433.65204486]
[1752681397510,14.45715391,167.76,167.65,14.45715391]
[1752681397715,1.03733512,167.85,167.66,3.32]
[1752681397716,3.41,167.77,167.66,3.32]
[1752681398009,14.45715391,167.79,167.68,14.45715391]
[1752681398214,3.41,167.8,167.71,14.45715391]
[1752681398410,3.41,167.8,167.72,3.32]
[1752681398811,17.86715391,167.8,167.74,3.32]
[1752681399018,3.41,167.79,167.74,3.32]
[1752681399313,3.41,167.77,167.74,3.32]
[1752681400011,3.41,167.79,167.69,3.32]
[1752681400211,3.41,167.76,167.69,3.32]
[1752681400417,3.41,167.76,167.7,3.32]
[1752681400820,3.41,167.76,167.71,5.9598]
[1752681401120,3.41,167.76,167.73,3.32]
[1752681401316,9.3676,167.78,167.72,5.9594]
[1752681401514,14.45715391,167.79,167.72,3.32]
[1752681401717,3.41,167.78,167.72,3.32]
[1752681401918,3.41,167.75,167.68,3.32]
[1752681402521,3.41,167.75,167.69,3.32]
[1752681403121,14.45715391,167.76,167.69,3.32]
[1752681403320,12.94763512,167.85,167.69,3.32]
[1752681403321,17.86715391,167.8,167.69,3.32]
[1752681403819,3.41,167.79,167.69,3.32]
[1752681404020,5.958,167.77,167.67,722.01715391]
[1752681404216,3.41,167.76,167.73,3.32]
[1752681404415,14.45715391,167.8,167.68,3.32]
[1752681404416,17.86715391,167.8,167.68,3.32]
[1752681404611,3.41,167.8,167.74,3.32]
[1752681405215,14.45715391,167.83,167.74,3.32]
[1752681405421,17.86715391,167.83,167.75,3.32]
[1752681405621,17.86715391,167.83,167.78,5.9575]
[1752681405622,5.9562,167.82,167.78,5.9575]
[1752681405822,3.41,167.82,167.79,3.32]
[1752681406026,14.45715391,167.84,167.8,3.32]
[1752681406224,3.41,167.87,167.8,3.32]
[1752681406819,5.9553,167.85,167.8,9.2767]
[1752681407025,3.21,167.85,167.82,3.37]
[1752681407428,3.21,167.85,167.82,9.3259]
[1752681407628,3.21,167.83,167.8,3.37]
[1752681407827,3.21,167.85,167.74,192.04]
[1752681408017,14.45715391,167.87,167.77,3.37]
[1752681408325,17.66715391,167.88,167.77,3.37]
[1752681408522,14.45715391,167.89,167.84,3.37]
[1752681408722,17.66715391,167.89,167.77,3.37]
[1752681408921,5.9551,167.85,167.8,5.9566]
[1752681409121,5.9551,167.85,167.74,192.04]
[1752681409122,3.21,167.85,167.82,3.37]
[1752681409528,17.66715391,167.89,167.83,3.37]
[1752681409827,3.21,167.89,167.83,3.37]
[1752681410618,5.9543,167.87,167.83,3.37]
[1752681410823,3.21,167.89,167.83,3.37]
[1752681411021,3.21,167.87,167.8,3.37]
[1752681411230,3.21,167.87,167.77,514.68]
[1752681411231,5.9549,167.86,167.82,5.9559]
[1752681411422,14.45715391,167.88,167.83,3.37]
[1752681411625,3.21,167.86,167.83,3.37]
[1752681411821,14.45715391,167.88,167.77,706.4]
[1752681411822,17.66715391,167.88,167.77,706.4]
[1752681412124,17.66715391,167.88,167.78,3.37]
[1752681412328,17.66715391,167.88,167.77,706.4]
[1752681412329,14.45715391,167.88,167.83,5.9554]
[1752681412525,14.45715391,167.88,167.83,3.37]
[1752681412526,3.21,167.86,167.83,3.37]
[1752681412726,3.21,167.91,167.78,3.37]
[1752681412927,17.66715391,167.91,167.8,14.45715391]
[1752681413129,17.66715391,167.91,167.81,3.37]
[1752681413322,14.45715391,167.91,167.86,3.37]
[1752681413527,0.17985019,167.92,167.86,3.37]
[1752681413830,3.38985019,167.92,167.86,3.37]
[1752681414331,17.8470041,167.92,167.86,3.37]
[1752681414630,17.8470041,167.92,167.79,3.37]
[1752681414831,17.8470041,167.92,167.77,706.4]
[1752681414832,0.17985019,167.92,167.82,3.37]
[1752681415030,0.17985019,167.92,167.81,14.45715391]
[1752681415031,0.17985019,167.92,167.9,3.37]
[1752681415228,3.21,168.12,167.91,3.37]
[1752681415428,3.21,168.11,167.91,3.37]
[1752681415726,14.45715391,168.05,167.93,14.45715391]
[1752681415928,3.21,168.04,167.94,3.37]
[1752681416233,17.66715391,168.02,167.94,3.37]
[1752681416426,3.21,168.01,167.94,3.37]
[1752681416727,3.21,167.95,167.91,3.37]
[1752681417026,14.45715391,167.96,167.88,3.37]
[1752681417531,5.9519,167.94,167.87,514.62]
[1752681417728,14.45715391,167.96,167.9,3.37]
[1752681417927,3.21,167.98,167.9,3.37]
[1752681418131,17.66715391,167.98,167.9,3.37]
[1752681418729,5.9517,167.95,167.91,3.37]
[1752681418929,3.21,167.98,167.91,3.37]
[1752681419232,5.9515,167.96,167.92,3.37]
[1752681419430,5.9515,167.96,167.93,3.37]
[1752681419628,5.9515,167.95,167.94,3.37]
[1752681419834,14.45715391,167.99,167.88,3.37]
[1752681420229,3.21,167.98,167.91,3.37]
[1752681420425,3.21,167.95,167.88,3.37]
[1752681420627,5.9505,167.98,167.88,3.37]
[1752681420829,14.45715391,168.04,167.94,3.37]
[1752681421131,14.45715391,168.04,167.95,3.37]
[1752681421132,17.66715391,168.04,167.95,3.37]
[1752681421340,17.66715391,168.03,167.95,3.37]
[1752681421731,5.9495,168.01,167.96,5.9509]
[1752681421931,3.21,168.03,167.97,3.37]
[1752681422132,3.21,168.06,167.97,3.37]
[1752681422529,3.21,168.03,167.97,3.37]
[1752681422839,3.21,168.0,167.94,3.37]
[1752681423037,3.21,167.97,167.88,3.37]
[1752681423343,29.7927,168.1,167.92,3.37]
[1752681423344,3.21,168.03,167.92,3.37]
[1752681423731,3.21,168.0,167.92,3.37]
[1752681424141,14.45715391,167.98,167.92,3.37]
[1752681424331,3.21,167.98,167.92,3.37]
[1752681425145,14.45715391,168.02,167.92,3.37]
[1752681425434,3.21,168.03,167.87,706.08]
[1752681425435,3.21,168.03,167.93,14.45715391]
[1752681425630,3.21,168.07,167.97,3.37]
[1752681426237,3.21,168.2,168.03,3.37]
[1752681426440,3.21,168.14,168.03,3.37]
[1752681426743,3.21,168.11,168.03,3.37]
[1752681427038,3.21,168.14,168.09,5.9466]
[1752681427243,3.21,168.14,168.08,3.37]
[1752681427435,17.66715391,168.14,168.08,3.37]
[1752681427647,514.24,168.21,168.03,191.18]
[1752681427648,17.66715391,168.11,168.05,3.37]
[1752681428238,3.21,168.07,168.03,3.37]
[1752681428443,3.21,168.18,168.03,3.37]
[1752681428643,14.45715391,168.04,167.98,517.61]
[1752681428949,14.45715391,168.06,167.99,2.4824803]
[1752681429145,14.45715391,168.06,168.0,5.8524803]
[1752681429346,14.45715391,168.06,168.02,3.37]
[1752681429646,17.66715391,168.06,168.03,5.85163557]
[1752681429847,17.66715391,168.06,167.98,514.24]
[1752681429848,17.66715391,168.06,168.04,2.48163557]
[1752681430043,17.66715391,168.06,168.05,2.48163557]
[1752681430239,17.66715391,168.06,168.02,5.9488]
[1752681430445,17.66715391,168.06,168.03,5.84972017]
[1752681430746,17.66715391,168.06,168.04,2.47972017]
[1752681430947,17.66715391,168.06,167.98,514.24]
[1752681430948,3.21,168.17,167.99,3.37]
[1752681431153,3.21,168.09,168.01,3.37]
[1752681431452,3.21,168.06,167.99,3.37]
[1752681431647,190.92,168.18,167.87,73.9083]
[1752681431648,14.45715391,168.04,168.0,2.47984777]
[1752681431851,14.45715391,168.12,167.94,191.2]
[1752681431852,17.66715391,168.03,167.99,3.37]
[1752681432048,17.66715391,168.03,168.0,2.48039782]
[1752681432049,14.45715391,168.03,168.0,2.48039782]
[1752681432247,3.21,168.05,168.02,3.37]
[1752681433048,14.45715391,168.06,167.96,14.45715391]
[1752681433242,3.21,168.06,168.03,3.37]
[1752681433553,3.21,168.04,168.01,3.37]
[1752681434051,14.45715391,168.07,168.02,3.37]
[1752681434249,17.66715391,168.06,167.97,3.37]
[1752681434446,3.21,168.05,167.99,3.37]
[1752681434647,9.1594,168.01,168.0,2.47839983]
[1752681434853,3.21,168.0,167.97,2.47839983]
[1752681435155,3.21,168.02,167.99,5.9501]
[1752681435351,3.21,168.05,168.0,3.37]
[1752681435553,14.45715391,168.07,167.95,14.45715391]
[1752681435852,3.21,168.06,168.03,3.37]
[1752681436151,14.45715391,168.07,168.04,3.37]
[1752681436349,17.66715391,168.07,168.04,3.37]
[1752681436543,3.21,168.19,167.99,194.49]
[1752681436853,20.40365391,168.1,168.05,5.9479]
[1752681437056,23.78365391,168.1,168.06,3.19]
[1752681437345,3.38,168.05,168.01,3.19]
[1752681437544,14.45715391,168.07,167.99,191.06]
[1752681437545,3.38,168.06,168.02,3.19]
[1752681437749,705.02,168.21,168.0,3.19]
[1752681437750,14.45715391,168.09,168.0,3.19]
[1752681438250,531.92,168.21,168.0,3.19]
[1752681438251,17.83715391,168.13,168.01,3.19]
[1752681438447,3.38,168.13,168.02,3.19]
[1752681438643,3.38,168.13,168.04,3.19]
[1752681438851,3.38,168.13,168.08,5.9467]
[1752681439149,14.45715391,168.15,168.07,3.19]
[1752681439150,3.38,168.11,168.07,3.19]
[1752681439451,3.38,168.11,168.07,5.9471]
[1752681439752,3.38,168.11,168.08,3.19]
[1752681439953,9.326,168.11,168.08,3.19]
[1752681440155,14.45715391,168.12,168.0,528.43715391]
[1752681440353,14.45715391,168.12,168.1,3.19]
[1752681440649,3.38,168.12,168.0,528.43715391]
[1752681440851,3.38,168.12,168.09,3.19]
[1752681441051,3.38,168.12,168.07,3.19]
[1752681441254,3.38,168.12,168.0,513.98]
[1752681441255,3.38,168.1,168.02,3.19]
[1752681441649,3.38,168.1,168.01,17.64715391]
[1752681441852,22.83715391,168.13,168.01,17.64715391]
[1752681442051,3.38,168.12,168.02,3.19]
[1752681442855,3.38,168.07,168.01,3.19]
[1752681443251,3.38,168.06,168.0,513.98]
[1752681443446,3.38,168.04,168.01,3.19]
[1752681443654,14.45715391,168.08,168.01,5.9491]
[1752681443655,5.9474,168.07,168.01,5.9491]
[1752681443850,17.83715391,168.08,168.01,3.19]
[1752681444051,3.38,168.12,168.01,3.19]
[1752681444652,5.9465,168.1,168.04,5.9481]
[1752681444950,14.45715391,168.1,168.04,3.19]
[1752681445351,9.3273,168.07,168.04,3.19]
[1752681445555,14.45715391,168.11,168.01,3.19]
[1752681445752,3.38,168.12,168.01,3.19]
[1752681445953,5.0,168.13,168.04,3.19]
[1752681446353,5.0,168.13,168.08,5.9469]
[1752681446554,5.0,168.13,168.06,190.4]
[1752681446757,5.0,168.13,168.11,3.19]
[1752681446956,19.45715391,168.13,168.08,3.19]
[1752681447258,3.38,168.12,168.06,190.4]
[1752681447557,3.38,168.1,168.07,3.19]
[1752681447856,3.38,168.1,168.0,528.43715391]
[1752681447857,5.9478,168.06,168.01,9.1392]
[1752681448057,3.38,168.06,168.03,3.19]
[1752681448260,14.45715391,168.1,168.0,513.98]
[1752681448261,3.38,168.09,168.01,3.19]
[1752681448454,3.38,168.09,168.05,3.19]
[1752681448654,3.38,168.09,168.07,3.19]
[1752681448855,3.38,168.09,168.04,3.19]
[1752681449158,3.38,168.09,168.05,3.19]
[1752681449360,3.38,168.08,168.05,3.19]
[1752681449550,14.45715391,168.1,168.02,3.19]
[1752681449551,9.3277,168.07,168.02,3.19]
[1752681449752,3.38,168.07,168.04,3.19]
[1752681450157,17.83715391,168.1,168.04,3.19]
[1752681450451,22.83715391,168.13,168.04,3.19]
[1752681451056,22.83715391,168.13,168.02,14.45715391]
[1752681451257,5.0,168.13,168.03,3.19]
[1752681451458,5.9457,168.12,168.06,5.9475]
[1752681451659,5.0,168.13,168.07,3.19]
[1752681453064,5.0,168.13,168.12,3.19]
[1752681454261,5.0,168.13,168.05,204.55715391]
[1752681454565,5.0,168.13,168.06,3.19]
[1752681454764,5.0,168.13,168.07,3.19]
[1752681454968,5.0,168.13,168.08,3.19]
[1752681455167,5.0,168.13,168.11,3.19]
[1752681455364,5.0,168.13,168.07,3.19]
[1752681455666,5.0,168.13,168.12,9.1356]
[1752681455865,17.83715391,168.2,168.12,3.19]
[1752681456162,5.9434,168.19,168.13,5.945]
[1752681456361,9.3234,168.19,168.15,3.19]
[1752681456562,3.38,168.19,168.14,3.19]
[1752681456767,11.879,168.3,168.17,3.19]
[1752681456967,3.38,168.21,168.14,3.19]
[1752681457462,3.38,168.21,168.11,189.68]
[1752681457463,14.45715391,168.22,168.12,3.19]
[1752681457664,16.25177432,168.26,168.16,14.45715391]
[1752681457864,3.38,168.4,168.25,3.19]
[1752681458068,3.38,168.4,168.28,3.19]
[1752681458264,5.9363,168.39,168.32,5.9382]
[1752681458467,14.45715391,168.39,168.33,3.19]
[1752681458865,3.38,168.38,168.33,3.19]
[1752681459062,3.38,168.35,168.25,513.76]
[1752681459269,5.9364,168.38,168.28,3.19]
[1752681459466,17.83715391,168.4,168.29,2.92985215]
[1752681459663,3.38,168.43,168.3,17.38700606]
[1752681459869,3.38,168.43,168.35,5.9374]
[1752681460059,3.38,168.43,168.37,3.19]
[1752681460263,14.45715391,168.45,168.31,203.83715391]
[1752681460264,3.38,168.44,168.38,6.11985215]
[1752681460559,3.38,168.44,168.39,2.92985215]
[1752681460767,3.38,168.44,168.41,3.19]
[1752681460967,513.66,168.53,168.42,2.92985215]
[1752681461170,14.45715391,168.47,168.43,2.92985215]
[1752681461372,9.3139,168.45,168.44,2.92985215]
[1752681461671,3.38,168.46,168.32,3.19]
[1752681461872,3.38,168.42,168.32,9.1282]
[1752681462170,3.38,168.39,168.32,3.19]
[1752681462968,3.38,168.39,168.33,1.48481606]
[1752681463275,3.38,168.39,168.27,189.08]
[1752681463276,14.45715391,168.37,168.34,1.48481606]
[1752681463468,3.38,168.36,168.35,1.48481606]
[1752681463665,44.22315391,168.48,168.36,3.19]
[1752681463666,3.38,168.39,168.36,3.19]
[1752681463871,3.38,168.39,168.37,1.48481606]
[1752681464073,9.3161,168.39,168.38,1.48481606]
[1752681464372,23.77325391,168.39,168.38,1.48481606]
[1752681464668,23.77325391,168.39,168.38,1.48466935]
[1752681464669,14.45715391,168.39,168.38,1.48466935]
[1752681465071,14.45715391,168.39,168.35,3.19]
[1752681465368,3.38,168.38,168.36,1.48484611]
[1752681465574,3.38,168.38,168.35,3.19]
[1752681465773,3.38,168.36,168.29,3.19]
[1752681465971,3.38,168.36,168.3,1.48498413]
[1752681466173,3.38,168.36,168.29,3.19]
[1752681466375,5.9384,168.33,168.29,3.19]
[1752681467074,3.29,168.33,168.26,3.38]
[1752681467470,3.29,168.43,168.26,3.38]
[1752681467663,14.45715391,168.37,168.26,3.38]
[1752681467865,3.29,168.38,168.27,3.38]
[1752681468271,5.9378,168.35,168.27,3.38]
[1752681468776,5.9378,168.35,168.3,3.38]
[1752681468971,3.29,168.38,168.3,3.38]
[1752681469177,3.29,168.33,168.3,3.38]
[1752681469474,3.29,168.33,168.26,3.38]
[1752681469475,3.29,168.32,168.26,3.38]
[1752681469673,3.29,168.29,168.26,3.38]
[1752681469874,17.74715391,168.32,168.25,3.38]
[1752681470272,17.74715391,168.32,168.26,5.9405]
[1752681470472,17.74715391,168.32,168.27,3.38]
[1752681470772,5.9391,168.31,168.28,3.38]
[1752681470973,17.74715391,168.32,168.28,3.38]
[1752681471174,17.74715391,168.32,168.29,3.38]
[1752681471364,188.4,168.43,168.25,3.38]
[1752681471365,3.29,168.43,168.25,3.38]
[1752681471573,20.39435391,168.36,168.27,3.38]
[1752681471873,3.29,168.37,168.27,3.38]
[1752681472175,5.9382,168.34,168.3,3.38]
[1752681472472,5.9382,168.34,168.24,188.34]
[1752681472473,3.29,168.32,168.27,3.38]
[1752681472671,3.29,168.32,168.18,62.0]
[1752681472672,17.74715391,168.29,168.19,3.38]
[1752681472875,3.29,168.28,168.19,3.38]
[1752681473078,3.29,168.35,168.19,3.38]
[1752681473277,3.29,168.3,168.19,3.38]
[1752681473579,14.45715391,168.35,168.29,3.38]
[1752681473777,3.29,168.35,168.31,3.38]
[1752681473981,3.29,168.34,168.31,3.38]
[1752681474276,3.29,168.31,168.2,14.45715391]
[1752681474482,3.29,168.28,168.22,3.38]
[1752681474676,3.29,168.24,168.23,2.84789496]
[1752681475273,9.2314,168.24,168.23,2.84789496]
[1752681475579,3.29,168.24,168.23,2.84789496]
[1752681477176,3.29,168.28,168.23,6.22789496]
[1752681477377,513.16,168.33,168.23,6.22789496]
[1752681477378,14.45715391,168.27,168.24,2.84789496]
[1752681477580,14.45715391,168.27,168.25,2.84789496]
[1752681477785,14.45715391,168.27,168.26,4.33352702]
[1752681478285,3.29,168.29,168.26,7.71352702]
[1752681478481,3.29,168.29,168.18,188.36]
[1752681478482,513.16,168.33,168.27,4.33352702]
[1752681478676,513.16,168.33,168.25,3.38]
[1752681478677,14.45715391,168.3,168.28,4.3338783]
[1752681478877,17.74715391,168.3,168.26,3.38]
[1752681479080,17.74715391,168.3,168.27,4.8655934]
[1752681479282,17.74715391,168.3,168.19,3.38]
[1752681479283,3.29,168.29,168.19,3.38]
[1752681479484,3.29,168.29,168.21,3.38]
[1752681479676,14.45715391,168.36,168.22,4.33532427]
[1752681479677,14.45715391,168.24,168.22,4.33532427]
[1752681479880,9.2331,168.2,168.16,3.38]
[1752681480074,3.29,168.19,168.17,2.85233534]
[1752681480280,14.45715391,168.2,168.18,2.85233534]
[1752681480482,3.29,168.22,168.19,6.23233534]
[1752681480687,3.29,168.22,168.2,2.85233534]
[1752681480883,9.2321,168.22,168.21,2.85233534]
[1752681481388,9.2312,168.25,168.21,8.79453534]
[1752681481591,3.29,168.25,168.22,6.23126338]
[1752681481781,3.29,168.25,168.23,6.23126338]
[1752681482084,3.29,168.25,168.23,3.38]
[1752681482286,3.29,168.25,168.24,2.85439777]
[1752681482485,5.9421,168.22,168.15,3.38]
[1752681482689,17.74715391,168.22,168.18,3.38]
[1752681482893,3.29,168.2,168.19,2.85474858]
[1752681483090,9.2329,168.2,168.19,2.85474858]
[1752681483688,3.29,168.29,168.19,2.85474858]
[1752681483984,14.45715391,168.26,168.21,3.38]
[1752681484282,14.45715391,168.31,168.23,3.38]
[1752681484489,3.29,168.33,168.24,2.85474858]
[1752681484677,3.29,168.36,168.26,3.38]
[1752681484885,188.3,168.42,168.26,3.38]
[1752681484886,3.29,168.41,168.28,3.38]
[1752681485090,5.9355,168.42,168.33,3.38]
[1752681485288,513.3,168.48,168.35,3.38]
[1752681485289,14.45715391,168.43,168.35,3.38]
[1752681485490,3.29,168.38,168.36,2.85474858]
[1752681485788,3.29,168.38,168.32,3.38]
[1752681485981,14.45715391,168.4,168.34,3.38]
[1752681486181,3.29,168.41,168.38,3.38]
[1752681486385,3.29,168.47,168.4,3.38]
[1752681486584,3.29,168.45,168.41,6.22981761]
[1752681486784,3.29,168.45,168.42,6.22981761]
[1752681486992,17.74715391,168.47,168.43,6.22981761]
[1752681487190,23.68085391,168.47,168.43,3.38]
[1752681487488,23.68085391,168.47,168.33,14.45715391]
[1752681487489,17.74715391,168.47,168.35,3.38]
[1752681487683,5.9349,168.44,168.38,5.9366]
[1752681487881,17.74715391,168.47,168.4,3.38]
[1752681488079,211.33927947,168.54,168.41,2.84452711]
[1752681488080,3.29,168.42,168.41,2.84452711]
[1752681488288,3.29,168.4,168.31,513.24]
[1752681488489,17.74715391,168.4,168.32,6.22667173]
[1752681488786,17.74715391,168.4,168.31,513.24]
[1752681488787,14.45715391,168.41,168.37,3.38]
[1752681488991,3.29,168.4,168.38,2.84667173]
[1752681489187,14.45715391,168.39,168.33,3.38]
[1752681490089,17.74715391,168.39,168.33,3.38]
[1752681490590,17.74715391,168.39,168.25,14.45715391]
[1752681490591,5.9375,168.37,168.34,3.38]
[1752681491295,3.29,168.37,168.34,3.38]
[1752681491486,3.29,168.37,168.31,3.38]
[1752681491788,14.45715391,168.48,168.31,3.38]
[1752681491789,3.29,168.53,168.43,5.9348]
[1752681492089,3.29,168.48,168.42,3.38]
[1752681492289,3.29,168.48,168.46,0.03756128]
[1752681492290,16.92919021,168.47,168.46,0.03756128]